[Event "44th Chess Olympiad Open 2022"]
[Site "Chennai"]
[Date "2022.08.07"]
[Round "9.66"]
[White "Ursus van Bemmelen"]
[Black "Soriano, Rudolph P."]
[Result "1-0"]
[WhiteElo "2145"]
[BlackElo "1824"]
[Annotator "NA"]
[PlyCount "119"]
[EventDate "2022.??.??"]
[TimeControl "60"]

1. d4 {[%emt 0:00:07]} Nf6 {[%emt 0:00:22]} 2. Nf3 {[%emt 0:00:39]} e6 {
[%emt 0:00:25]} 3. c4 {[%emt 0:00:13]} b6 {[%emt 0:00:45]} 4. g3 {[%emt 0:00:
00]} Ba6 {[%emt 0:00:28]} 5. b3 {[%emt 0:00:12]} Bb4+ {[%emt 0:00:16]} 6. Bd2 {
[%emt 0:00:19]} Be7 {[%emt 0:00:13]} 7. Bg2 {[%emt 0:00:15]} O-O {[%emt 0:00:
00]} 8. O-O {[%emt 0:00:14]} d5 {[%emt 0:00:31]} 9. Bc3 {[%emt 0:01:17]} Nbd7 {
[%emt 0:01:09]} 10. Nbd2 {[%emt 0:00:58]} Bb7 {[%emt 0:00:36]} 11. Bb2 {
[%emt 0:02:59]} Rb8 {[%emt 0:00:55]} 12. Re1 {[%emt 0:07:50]} Re8 {[%emt 0:00:
00]} 13. Ne5 {[%emt 0:02:13]} Bb4 {[%emt 0:05:49]} 14. Nxd7 {[%emt 0:03:54]}
Qxd7 {[%emt 0:01:13]} 15. a3 {[%emt 0:00:30]} Bxd2 {[%emt 0:02:27]} 16. Qxd2 {
[%emt 0:00:03]} Ne4 {[%emt 0:04:10]} 17. Qc2 {[%emt 0:06:59]} f5 {[%emt 0:00:
00]} 18. Rad1 {[%emt 0:06:40]} Qf7 {[%emt 0:00:44]} 19. Bc1 {[%emt 0:00:30]}
Re7 {[%emt 0:02:18]} 20. f3 {[%emt 0:17:21]} Nf6 {[%emt 0:05:27]} 21. cxd5 {
[%emt 0:02:40]} Bxd5 {[%emt 0:03:03]} 22. e4 {[%emt 0:00:18]} fxe4 {[%emt 0:00:
00]} 23. fxe4 {[%emt 0:00:02]} Qg6 {[%emt 0:01:25]} 24. Re2 {[%emt 0:07:04]}
Bb7 {[%emt 0:01:48]} 25. Bf4 {[%emt 0:13:52]} Ba6 {[%emt 0:02:06]} 26. Red2 {
[%emt 0:02:38]} Rbe8 {[%emt 0:04:13]} 27. b4 {[%emt 0:04:30]} h6 {[%emt 0:00:
00]} 28. Rc1 {[%emt 0:04:36]} Ng4 {[%emt 0:02:33]} 29. Qc6 {[%emt 0:08:32]} Qh5
{[%emt 0:02:28]} 30. h3 {[%emt 0:00:10]} Nf6 {[%emt 0:00:46]} 31. g4 {[%emt 0:
00:00]} Qf7 {[%emt 0:02:09]} 32. Rf2 {[%emt 0:00:57]} Qg6 {[%emt 0:00:51]} 33.
b5 {[%emt 0:01:24]} Bc8 {[%emt 0:01:42]} 34. a4 {[%emt 0:01:13]} Bd7 {[%emt 0:
00:00]} 35. Qc2 {[%emt 0:00:01]} Rc8 {[%emt 0:03:34]} 36. e5 {[%emt 0:02:30]}
Qxc2 {[%emt 0:01:42]} 37. Rfxc2 {[%emt 0:00:01]} Ne8 {[%emt 0:02:25]} 38. Bd2 {
[%emt 0:01:58]} Kh8 {[%emt 0:04:23]} 39. Be4 {[%emt 0:00:21]} Rf7 {[%emt 0:00:
00]} 40. Kg2 {[%emt 0:00:01]} g5 {[%emt 0:03:30]} 41. h4 {[%emt 0:32:43]} Rg7 {
[%emt 0:36:57]} 42. hxg5 {[%emt 0:00:31]} hxg5 {[%emt 0:00:24]} 43. Rh1+ {
[%emt 0:00:20]} Kg8 {[%emt 0:00:05]} 44. Rh5 {[%emt 0:00:15]} a6 {[%emt 0:00:
00]} 45. Bb7 {[%emt 0:00:00]} axb5 {[%emt 0:00:00]} 46. Bxc8 {[%emt 0:00:00]}
Bxc8 {[%emt 0:00:00]} 47. axb5 {[%emt 0:00:00]} Bd7 {[%emt 0:00:00]} 48. Rb2 {
[%emt 0:00:00]} c6 {[%emt 0:00:00]} 49. bxc6 {[%emt 0:00:00]} Bxc6+ {[%emt 0:
00:00]} 50. Kg1 {[%emt 0:00:00]} b5 {[%emt 0:00:00]} 51. Rxg5 {[%emt 0:00:00]}
Rxg5 {[%emt 0:00:00]} 52. Bxg5 {[%emt 0:00:00]} Kf7 {[%emt 0:00:00]} 53. Kf2 {
[%emt 0:00:00]} Kg6 {[%emt 0:00:00]} 54. Bd8 {[%emt 0:00:00]} Kf7 {[%emt 0:00:
00]} 55. Ke3 {[%emt 0:00:00]} Ng7 {[%emt 0:00:00]} 56. Kf4 {[%emt 0:00:00]} Ke8
{[%emt 0:00:00]} 57. Bf6 {[%emt 0:00:00]} Kf7 {[%emt 0:00:00]} 58. Bxg7 {
[%emt 0:00:00]} Kxg7 {[%emt 0:00:00]} 59. Kg5 {[%emt 0:00:00]} Bd7 {[%emt 0:00:
00]} 60. Ra2 {[%emt 0:00:00]} 1-0

[Event "44th Chess Olympiad Open 2022"]
[Site "Chennai"]
[Date "2022.08.07"]
[Round "9.66"]
[White "Prudente, Elmer"]
[Black "Roose Alex"]
[Result "1/2-1/2"]
[WhiteElo "1995"]
[BlackElo "1888"]
[Annotator "NA"]
[PlyCount "100"]
[EventDate "2022.??.??"]
[TimeControl "60"]

1. e4 {[%emt 0:00:05]} c5 {[%emt 0:00:06]} 2. Nf3 {[%emt 0:00:06]} Nc6 {
[%emt 0:00:17]} 3. d4 {[%emt 0:00:08]} cxd4 {[%emt 0:00:18]} 4. Nxd4 {[%emt 0:
00:00]} e5 {[%emt 0:00:40]} 5. Nb3 {[%emt 0:01:16]} Nf6 {[%emt 0:00:57]} 6. Nc3
{[%emt 0:00:06]} Bb4 {[%emt 0:04:56]} 7. Bg5 {[%emt 0:01:08]} h6 {[%emt 0:00:
00]} 8. Bxf6 {[%emt 0:01:06]} Qxf6 {[%emt 0:00:40]} 9. a3 {[%emt 0:01:18]}
Bxc3+ {[%emt 0:01:23]} 10. bxc3 {[%emt 0:00:02]} O-O {[%emt 0:05:22]} 11. Qd2 {
[%emt 0:08:47]} d6 {[%emt 0:14:15]} 12. Bc4 {[%emt 0:06:27]} Be6 {[%emt 0:00:
00]} 13. Bd5 {[%emt 0:00:06]} Rfd8 {[%emt 0:01:55]} 14. O-O {[%emt 0:01:45]}
Rac8 {[%emt 0:03:58]} 15. c4 {[%emt 0:11:06]} Bxd5 {[%emt 0:04:46]} 16. cxd5 {
[%emt 0:00:37]} Nb8 {[%emt 0:01:43]} 17. Qd3 {[%emt 0:03:07]} Na6 {[%emt 0:00:
00]} 18. Rab1 {[%emt 0:03:43]} Qe7 {[%emt 0:05:31]} 19. Rfc1 {[%emt 0:06:53]}
Rd7 {[%emt 0:02:40]} 20. Nd2 {[%emt 0:14:56]} Rdc7 {[%emt 0:06:07]} 21. c4 {
[%emt 0:00:18]} Nc5 {[%emt 0:01:12]} 22. Qe3 {[%emt 0:03:08]} Qd7 {[%emt 0:00:
00]} 23. Rb4 {[%emt 0:04:31]} b6 {[%emt 0:07:59]} 24. h3 {[%emt 0:00:49]} Na6 {
[%emt 0:01:04]} 25. Rbb1 {[%emt 0:02:03]} Nc5 {[%emt 0:00:09]} 26. Kf1 {
[%emt 0:04:25]} Na6 {[%emt 0:03:07]} 27. Qb3 {[%emt 0:05:19]} Nc5 {[%emt 0:00:
00]} 28. Qe3 {[%emt 0:04:15]} Na6 {[%emt 0:00:03]} 29. Rc2 {[%emt 0:00:25]} Nc5
{[%emt 0:00:33]} 30. Rcb2 {[%emt 0:00:28]} Na6 {[%emt 0:01:16]} 31. Rb5 {
[%emt 0:00:23]} Nc5 {[%emt 0:01:23]} 32. Ke2 {[%emt 0:01:17]} Na4 {[%emt 0:00:
00]} 33. Qb3 {[%emt 0:03:10]} Nc5 {[%emt 0:00:17]} 34. Qc2 {[%emt 0:00:06]} Qe7
{[%emt 0:01:12]} 35. Qc3 {[%emt 0:04:45]} Na4 {[%emt 0:01:40]} 36. Qe3 {
[%emt 0:00:11]} Nc5 {[%emt 0:00:15]} 37. R5b4 {[%emt 0:00:16]} Na6 {[%emt 0:00:
00]} 38. Rb5 {[%emt 0:01:53]} Nc5 {[%emt 0:00:20]} 39. Ra1 {[%emt 0:00:17]} Na4
{[%emt 0:01:20]} 40. Rb4 {[%emt 0:01:31]} Nc5 {[%emt 0:00:10]} 41. a4 {[%emt 0:
00:00]} Nb7 {[%emt 0:31:03]} 42. Kd3 {[%emt 0:03:18]} Na5 {[%emt 0:03:38]} 43.
Rc1 {[%emt 0:02:07]} Qd7 {[%emt 0:00:00]} 44. Qf3 {[%emt 0:00:00]} Nb7 {
[%emt 0:00:00]} 45. Qd1 {[%emt 0:00:00]} Nc5+ {[%emt 0:00:00]} 46. Ke3 {
[%emt 0:00:00]} Na6 {[%emt 0:00:00]} 47. Rb5 {[%emt 0:00:00]} Nc5 {[%emt 0:00:
00]} 48. Ra1 {[%emt 0:00:00]} Nb7 {[%emt 0:00:00]} 49. Qg4 {[%emt 0:00:00]}
Qxg4 {[%emt 0:00:00]} 50. hxg4 {[%emt 0:00:00]} Na5 {[%emt 0:00:00]} 1/2-1/2

[Event "44th Chess Olympiad Open 2022"]
[Site "Chennai"]
[Date "2022.08.07"]
[Round "9.66"]
[White "Estur, Gavino Aguilar"]
[Black "Rurik Capella"]
[Result "1/2-1/2"]
[WhiteElo "1598"]
[BlackElo "1952"]
[Annotator "NA RC"]
[PlyCount "117"]
[EventDate "2022.??.??"]
[TimeControl "60"]

1. e4 {[%emt 0:00:07]} d6 {[%emt 0:00:06]} 2. d4 {[%emt 0:00:36]} g6 {[%emt 0:
00:00]} 3. Nc3 {[%emt 0:00:32]} Bg7 {[%emt 0:00:09]} 4. Nf3 {[%emt 0:00:27]}
Nf6 {[%emt 0:00:19]} 5. h3 {[%emt 0:00:51]} O-O {[%emt 0:00:09]} 6. Bc4 {
[%emt 0:00:42]} Nxe4 {[%emt 0:00:42]} 7. O-O {[%emt 0:01:16]} Nxc3 {[%emt 0:00:
00]} 8. bxc3 {[%emt 0:00:09]} Nc6 {[%emt 0:00:47]} 9. Ng5 {[%emt 0:01:02]} h6 {
[%emt 0:04:37]} 10. Nxf7 {[%emt 0:01:01]} Rxf7 {[%emt 0:00:11]} 11. Bxf7+ {
[%emt 0:00:16]} Kxf7 {[%emt 0:00:14]} 12. Qf3+ {[%emt 0:02:55]} Kg8 {[%emt 0:
00:00]} 13. g4 {[%emt 0:00:45]} e5 {[%emt 0:01:39]} 14. d5 {[%emt 0:06:04]} Ne7
{[%emt 0:02:43]} 15. Rb1 {[%emt 0:02:27]} g5 {[%emt 0:05:42]} 16. Qe4 {[%emt 0:
00:00]} c6 {[%emt 0:02:41]} 17. c4 {[%emt 0:06:03]} c5 {[%emt 0:03:23]} 18. Rb3
{[%emt 0:03:31]} Qe8 {[%emt 0:03:34]} 19. Kh2 {[%emt 0:05:40]} Ng6 {[%emt 0:00:
00]} 20. Rf3 {[%emt 0:02:50]} Bd7 {[%emt 0:01:26]} 21. Rb3 {[%emt 0:01:57]} b6
{[%emt 0:03:42]} 22. f3 {[%emt 0:02:22]} Qf7 {[%emt 0:01:11]} 23. Kg3 {[%emt 0:
00:00]} Rf8 {[%emt 0:01:21]} 24. Ra3 {[%emt 0:00:00]} Be8 {[%emt 0:01:02]} 25.
Bd2 {[%emt 0:09:04]} Qe7 {[%emt 0:01:20]} 26. Kg2 {[%emt 0:05:58]} Nh4+ {
[%emt 0:00:50]} 27. Kg1 {[%emt 0:03:40]} Bg6 {[%emt 0:00:48]} 28. Qe2 {[%emt 0:
00:00]} Bh7 {[%emt 0:06:24]} 29. f4 {[%emt 0:01:34]} gxf4 {[%emt 0:02:35]} 30.
Rxf4 {[%emt 0:02:26]} Rxf4 {[%emt 0:01:59]} 31. Bxf4 {[%emt 0:00:24]} e4 {
[%emt 0:04:35]} 32. Kh2 {[%emt 0:06:26]} Bb2 {[%emt 0:01:47]} 33. Rb3 {[%emt 0:
00:00]} Be5 {[%emt 0:00:30]} 34. Bxe5 {[%emt 0:06:18]} Qxe5+ {[%emt 0:01:02]}
35. Kh1 {[%emt 0:06:06]} Nf3 {[%emt 0:02:53]} 36. Qf2 {[%emt 0:01:17]} Qa1+ {
[%emt 0:11:38]} 37. Kg2 {[%emt 0:00:18]} Qe5 {[%emt 0:00:02]} 38. Kh1 {[%emt 0:
00:00]} Bg6 {[%emt 0:06:59]} 39. Ra3 {[%emt 0:02:07]} Qe7 {[%emt 0:01:23]} 40.
Kg2 {[%emt 0:03:41]} Nh4+ {[%emt 0:04:11]} 41. Kg1 {[%emt 0:32:36]} Nf3+ {
[%emt 0:30:19]} 42. Kg2 {[%emt 0:00:15]} Kg7 {[%emt 0:08:48]} 43. Kf1 {[%emt 0:
00:00]} Ne5 {[%emt 0:00:00]} 44. Qe2 {[%emt 0:00:00]} Qf7+ {[%emt 0:00:00]} 45.
Kg2 {[%emt 0:00:00]} Nf3 {[%emt 0:00:00]} 46. Qf2 {[%emt 0:00:00]} Qe7 {
[%emt 0:00:00]} 47. Kf1 {[%emt 0:00:00]} Nd4 {[%emt 0:00:00]} 48. Re3 {[%emt 0:
00:00]} Qe5 {[%emt 0:00:00]} 49. c3 {[%emt 0:03:38]} Nf3 {[%emt 0:00:00]} 50.
Ke2 {[%emt 0:00:00]} b5 {[%emt 0:00:00]} 51. cxb5 {[%emt 0:00:00]} Qxd5 {
[%emt 0:00:00]} 52. Kf1 {[%emt 0:00:00]} Nd2+ {[%emt 0:00:00]} 53. Kg1 {
[%emt 0:00:00]} Nc4 {[%emt 0:00:00]} 54. Re1 {[%emt 0:00:00]} Qd3 {[%emt 0:00:
00]} 55. Rf1 {[%emt 0:00:00]} Qe3 {[%emt 0:00:00]} 56. Qxe3 {[%emt 0:00:00]}
Nxe3 {[%emt 0:00:00]} 57. Re1 {[%emt 0:00:00]} Nc4 {[%emt 0:00:43]} 58. a4 {
[%emt 0:00:30]} Kf6 {[%emt 0:03:10]} 59. Kf2 {[%emt 0:00:22]} 1/2-1/2

[Event "44th Chess Olympiad Open 2022"]
[Site "Chennai"]
[Date "2022.08.07"]
[Round "9.67"]
[White "Mizzi, Jack"]
[Black "Nicholas Arvin"]
[Result "1-0"]
[WhiteElo "1913"]
[BlackElo "1744"]
[Annotator "NA RC"]
[PlyCount "61"]
[EventDate "2022.??.??"]
[TimeControl "60"]

1. d4 {[%emt 0:00:05]} d5 {[%emt 0:00:05]} 2. c4 {[%emt 0:00:09]} e6 {[%emt 0:
00:00]} 3. Nf3 {[%emt 0:00:44]} Nf6 {[%emt 0:00:19]} 4. g3 {[%emt 0:00:07]}
Nbd7 {[%emt 0:01:17]} 5. Bg2 {[%emt 0:00:12]} Be7 {[%emt 0:00:25]} 6. O-O {
[%emt 0:00:10]} O-O {[%emt 0:00:04]} 7. Nbd2 {[%emt 0:00:34]} c6 {[%emt 0:00:
00]} 8. Qc2 {[%emt 0:00:40]} Re8 {[%emt 0:00:37]} 9. Rd1 {[%emt 0:00:30]} Nf8 {
[%emt 0:03:01]} 10. b3 {[%emt 0:01:08]} Ng6 {[%emt 0:00:52]} 11. Bb2 {[%emt 0:
00:00]} Qc7 {[%emt 0:01:53]} 12. Rac1 {[%emt 0:00:43]} Bd7 {[%emt 0:00:19]} 13.
e4 {[%emt 0:07:07]} dxe4 {[%emt 0:00:08]} 14. Nxe4 {[%emt 0:00:08]} Qb6 {
[%emt 0:00:33]} 15. Ne5 {[%emt 0:01:24]} Rad8 {[%emt 0:04:15]} 16. Ng5 {
[%emt 0:01:01]} Rf8 {[%emt 0:01:47]} 17. h4 {[%emt 0:03:17]} Nh5 {[%emt 0:00:
00]} 18. Bf3 {[%emt 0:07:45]} Bxg5 {[%emt 0:07:24]} 19. Nxd7 {[%emt 0:03:44]}
Rxd7 {[%emt 0:13:40]} 20. hxg5 {[%emt 0:01:55]} Nxg3 {[%emt 0:12:24]} 21. fxg3
{[%emt 0:00:17]} Qa5 {[%emt 0:04:00]} 22. d5 {[%emt 0:08:25]} Qc7 {[%emt 0:00:
00]} 23. Kg2 {[%emt 0:03:40]} c5 {[%emt 0:15:02]} 24. Qc3 {[%emt 0:02:19]} e5 {
[%emt 0:00:09]} 25. Bh5 {[%emt 0:04:13]} f6 {[%emt 0:05:43]} 26. Rf1 {[%emt 0:
00:00]} Rd6 {[%emt 0:07:24]} 27. Bxg6 {[%emt 0:01:42]} hxg6 {[%emt 0:00:08]}
28. Qd3 {[%emt 0:00:55]} Qe7 {[%emt 0:03:51]} 29. Rce1 {[%emt 0:02:18]} Rf7 {
[%emt 0:02:53]} 30. Rh1 {[%emt 0:03:21]} Kf8 {[%emt 0:02:05]} 31. Rh8# {
[%emt 0:00:08]} 1-0

[Event "44th Chess Olympiad Open 2022"]
[Site "Chennai"]
[Date "2022.08.07"]
[Round "9.67"]
[White "Cilia Vincenti, David"]
[Black "Mathurin, Nathaniel"]
[Result "1-0"]
[WhiteElo "1904"]
[BlackElo "1722"]
[Annotator "NA"]
[PlyCount "43"]
[EventDate "2022.??.??"]
[TimeControl "60"]

1. d4 {[%emt 0:00:03]} Nf6 {[%emt 0:00:06]} 2. Nf3 {[%emt 0:00:10]} d5 {
[%emt 0:00:11]} 3. e3 {[%emt 0:00:09]} c5 {[%emt 0:00:38]} 4. Nbd2 {[%emt 0:00:
00]} Nc6 {[%emt 0:00:35]} 5. Bb5 {[%emt 0:00:12]} Qb6 {[%emt 0:08:19]} 6. c4 {
[%emt 0:00:21]} e6 {[%emt 0:02:14]} 7. Ne5 {[%emt 0:12:49]} Bd6 {[%emt 0:06:35]
} 8. Qa4 {[%emt 0:33:05]} O-O {[%emt 0:10:18]} 9. Bxc6 {[%emt 0:05:38]} bxc6 {
[%emt 0:00:10]} 10. Qxc6 {[%emt 0:01:20]} Qb8 {[%emt 0:04:20]} 11. Ndf3 {
[%emt 0:07:44]} Bxe5 {[%emt 0:13:30]} 12. dxe5 {[%emt 0:01:49]} Bb7 {[%emt 0:
00:00]} 13. Qb5 {[%emt 0:06:04]} Ne4 {[%emt 0:08:08]} 14. O-O {[%emt 0:02:40]}
Qc8 {[%emt 0:00:02]} 15. b3 {[%emt 0:03:52]} Ba6 {[%emt 0:07:30]} 16. Qa4 {
[%emt 0:01:24]} Rb8 {[%emt 0:13:11]} 17. Ba3 {[%emt 0:01:16]} Rd8 {[%emt 0:00:
00]} 18. Rfc1 {[%emt 0:03:27]} d4 {[%emt 0:08:23]} 19. exd4 {[%emt 0:00:14]}
cxd4 {[%emt 0:00:02]} 20. Bb4 {[%emt 0:06:32]} f6 {[%emt 0:05:10]} 21. Ba5 {
[%emt 0:00:50]} Rd7 {[%emt 0:01:42]} 22. Rd1 {[%emt 0:01:27]} 1-0

[Event "44th Chess Olympiad Open 2022"]
[Site "Chennai"]
[Date "2022.08.07"]
[Round "9.67"]
[White "Sixtus Gabriel"]
[Black "Darmanin, Jake"]
[Result "0-1"]
[WhiteElo "1787"]
[BlackElo "2101"]
[Annotator "NA"]
[PlyCount "83"]
[EventDate "2022.??.??"]
[TimeControl "60"]

1. e4 {[%emt 0:00:07]} e5 {[%emt 0:00:13]} 2. Nf3 {[%emt 0:00:05]} Nc6 {
[%emt 0:00:09]} 3. Bc4 {[%emt 0:00:14]} Bc5 {[%emt 0:00:09]} 4. O-O {[%emt 0:
00:00]} d6 {[%emt 0:01:30]} 5. c3 {[%emt 0:01:15]} Nf6 {[%emt 0:01:15]} 6. d4 {
[%emt 0:00:40]} exd4 {[%emt 0:02:07]} 7. cxd4 {[%emt 0:00:39]} Bb6 {[%emt 0:00:
00]} 8. e5 {[%emt 0:05:51]} dxe5 {[%emt 0:11:52]} 9. d5 {[%emt 0:11:33]} Nd4 {
[%emt 0:11:00]} 10. Nxe5 {[%emt 0:03:17]} O-O {[%emt 0:01:55]} 11. Be3 {
[%emt 0:00:47]} Nf5 {[%emt 0:01:53]} 12. Bxb6 {[%emt 0:04:41]} axb6 {[%emt 0:
00:00]} 13. Nc3 {[%emt 0:02:17]} Re8 {[%emt 0:04:30]} 14. Re1 {[%emt 0:05:19]}
Nd6 {[%emt 0:05:12]} 15. Bb3 {[%emt 0:02:26]} Bf5 {[%emt 0:08:44]} 16. Qd4 {
[%emt 0:02:19]} h6 {[%emt 0:05:11]} 17. Rad1 {[%emt 0:04:20]} b5 {[%emt 0:00:
00]} 18. Re3 {[%emt 0:10:21]} Bh7 {[%emt 0:05:41]} 19. Qb4 {[%emt 0:02:22]} Nd7
{[%emt 0:12:48]} 20. Rde1 {[%emt 0:04:37]} Nxe5 {[%emt 0:04:42]} 21. Rxe5 {
[%emt 0:02:04]} Qd7 {[%emt 0:01:56]} 22. f4 {[%emt 0:05:21]} Bg6 {[%emt 0:00:
00]} 23. Bd1 {[%emt 0:01:29]} c6 {[%emt 0:01:22]} 24. Bf3 {[%emt 0:00:53]} Rxe5
{[%emt 0:04:56]} 25. Rxe5 {[%emt 0:01:26]} Rc8 {[%emt 0:09:25]} 26. Qc5 {
[%emt 0:08:54]} cxd5 {[%emt 0:00:00]} 27. Qxd5 {[%emt 0:00:30]} b4 {[%emt 0:00:
00]} 28. Ne4 {[%emt 0:06:45]} Rc1+ {[%emt 0:00:00]} 29. Kf2 {[%emt 0:00:16]}
Rc2+ {[%emt 0:00:00]} 30. Ke3 {[%emt 0:01:37]} Nf5+ {[%emt 0:00:00]} 31. Kd3 {
[%emt 0:00:40]} Qc7 {[%emt 0:00:00]} 32. Bd1 {[%emt 0:07:57]} Rxb2 {[%emt 0:00:
00]} 33. g4 {[%emt 0:00:39]} Ne7 {[%emt 0:00:00]} 34. Qd4 {[%emt 0:02:02]}
Bxe4+ {[%emt 0:00:07]} 35. Kxe4 {[%emt 0:00:33]} Rxh2 {[%emt 0:00:33]} 36. Bb3
{[%emt 0:00:23]} Kf8 {[%emt 0:00:29]} 37. Qxb4 {[%emt 0:00:27]} Qc6+ {[%emt 0:
00:00]} 38. Bd5 {[%emt 0:00:03]} Qc2+ {[%emt 0:00:13]} 39. Kd4 {[%emt 0:01:00]}
Rd2+ {[%emt 0:00:13]} 40. Qxd2 {[%emt 0:00:19]} Qxd2+ {[%emt 0:00:02]} 41. Kc5
{[%emt 0:30:24]} Qxf4 {[%emt 0:03:47]} 42. Re6 {[%emt 0:00:50]} 0-1

[Event "44th Chess Olympiad Open 2022"]
[Site "Chennai"]
[Date "2022.08.07"]
[Round "9.68"]
[White "Mwale, Joseph"]
[Black "Altell, Majed"]
[Result "1/2-1/2"]
[WhiteElo "2131"]
[BlackElo "1807"]
[Annotator "RC"]
[PlyCount "185"]
[EventDate "2022.??.??"]
[TimeControl "60"]

1. d4 {[%emt 0:00:02]} Nf6 {[%emt 0:00:36]} 2. c4 {[%emt 0:00:03]} e6 {[%emt 0:
00:00]} 3. g3 {[%emt 0:00:04]} d5 {[%emt 0:00:42]} 4. Bg2 {[%emt 0:00:03]} Bb4+
{[%emt 0:01:21]} 5. Bd2 {[%emt 0:00:18]} Bxd2+ {[%emt 0:00:30]} 6. Nxd2 {
[%emt 0:00:06]} O-O {[%emt 0:00:24]} 7. Ngf3 {[%emt 0:00:02]} Nbd7 {[%emt 0:00:
00]} 8. O-O {[%emt 0:00:17]} b6 {[%emt 0:02:43]} 9. Rc1 {[%emt 0:00:47]} c5 {
[%emt 0:00:51]} 10. b3 {[%emt 0:05:12]} Bb7 {[%emt 0:02:17]} 11. e3 {[%emt 0:
00:00]} Rc8 {[%emt 0:01:38]} 12. Qe2 {[%emt 0:00:21]} Ne4 {[%emt 0:01:21]} 13.
cxd5 {[%emt 0:02:40]} exd5 {[%emt 0:01:18]} 14. Nxe4 {[%emt 0:06:32]} dxe4 {
[%emt 0:00:12]} 15. Nd2 {[%emt 0:00:29]} Qe7 {[%emt 0:01:13]} 16. Rfd1 {
[%emt 0:06:01]} Rfd8 {[%emt 0:02:16]} 17. Nc4 {[%emt 0:01:20]} g6 {[%emt 0:00:
00]} 18. d5 {[%emt 0:03:30]} f5 {[%emt 0:06:48]} 19. Qb2 {[%emt 0:20:27]} Nf6 {
[%emt 0:08:16]} 20. d6 {[%emt 0:00:04]} Qe6 {[%emt 0:00:44]} 21. Bf1 {[%emt 0:
00:00]} Bd5 {[%emt 0:15:00]} 22. a4 {[%emt 0:00:49]} Kg7 {[%emt 0:08:13]} 23.
Rd2 {[%emt 0:01:03]} Kh6 {[%emt 0:01:37]} 24. Rcd1 {[%emt 0:00:28]} Rd7 {
[%emt 0:01:33]} 25. h4 {[%emt 0:05:56]} Rcd8 {[%emt 0:01:51]} 26. Qe5 {[%emt 0:
00:00]} Qxe5 {[%emt 0:06:18]} 27. Nxe5 {[%emt 0:00:08]} Bxb3 {[%emt 0:02:35]}
28. Nxd7 {[%emt 0:00:28]} Nxd7 {[%emt 0:01:07]} 29. Rb1 {[%emt 0:30:04]} Ne5 {
[%emt 0:01:22]} 30. Be2 {[%emt 0:01:09]} c4 {[%emt 0:02:13]} 31. Rd4 {[%emt 0:
00:00]} Bxa4 {[%emt 0:01:08]} 32. Kf1 {[%emt 0:02:32]} b5 {[%emt 0:10:47]} 33.
Ke1 {[%emt 0:00:21]} Nd3+ {[%emt 0:00:55]} 34. Bxd3 {[%emt 0:00:14]} exd3 {
[%emt 0:00:27]} 35. Kd2 {[%emt 0:00:43]} a5 {[%emt 0:01:05]} 36. e4 {[%emt 0:
00:00]} fxe4 {[%emt 0:00:46]} 37. Re1 {[%emt 0:00:01]} Rc8 {[%emt 0:02:59]} 38.
Rexe4 {[%emt 0:01:39]} c3+ {[%emt 0:02:56]} 39. Kxd3 {[%emt 0:00:04]} c2 {
[%emt 0:00:12]} 40. Re1 {[%emt 0:00:05]} b4 {[%emt 0:01:18]} 41. Kd2 {[%emt 0:
00:00]} b3 {[%emt 0:30:54]} 42. Kc1 {[%emt 0:00:00]} Bd7 {[%emt 0:00:00]} 43.
g4 {[%emt 0:00:00]} Rb8 {[%emt 0:00:00]} 44. Kb2 {[%emt 0:00:00]} a4 {[%emt 0:
00:00]} 45. Ra1 {[%emt 0:00:46]} Rb6 {[%emt 0:00:00]} 46. f3 {[%emt 0:00:00]}
Kg7 {[%emt 0:00:00]} 47. Rd2 {[%emt 0:00:00]} Rc6 {[%emt 0:00:00]} 48. Rc1 {
[%emt 0:00:00]} Kf7 {[%emt 0:00:00]} 49. Rd4 {[%emt 0:00:00]} Rb6 {[%emt 0:00:
00]} 50. Ra1 {[%emt 0:04:40]} h5 {[%emt 0:00:00]} 51. gxh5 {[%emt 0:00:00]}
gxh5 {[%emt 0:00:00]} 52. Rd5 {[%emt 0:00:00]} Kg6 {[%emt 0:00:00]} 53. Rg5+ {
[%emt 0:00:00]} Kh6 {[%emt 0:00:00]} 54. Rd5 {[%emt 0:00:00]} Rb4 {[%emt 0:00:
00]} 55. Ra5 {[%emt 0:02:30]} Rd4 {[%emt 0:00:14]} 56. Ra6 {[%emt 0:00:38]} Rd1
{[%emt 0:00:23]} 57. Rc1 {[%emt 0:00:00]} Kg6 {[%emt 0:01:08]} 58. Ra5 {
[%emt 0:01:01]} Rxd6 {[%emt 0:00:52]} 59. Rg5+ {[%emt 0:00:26]} Kh6 {[%emt 0:
00:00]} 60. Rcg1 {[%emt 0:00:43]} Rb6 {[%emt 0:00:55]} 61. Rg8 {[%emt 0:00:09]}
Bf5 {[%emt 0:00:23]} 62. Rh8+ {[%emt 0:00:04]} Bh7 {[%emt 0:00:23]} 63. Ra8 {
[%emt 0:00:03]} Rg6 {[%emt 0:02:18]} 64. Rxg6+ {[%emt 0:00:27]} Kxg6 {[%emt 0:
00:00]} 65. Rxa4 {[%emt 0:00:03]} Bg8 {[%emt 0:00:33]} 66. Ra5 {[%emt 0:01:04]}
Bf7 {[%emt 0:00:15]} 67. Rc5 {[%emt 0:01:28]} Kf6 {[%emt 0:00:30]} 68. Rg5 {
[%emt 0:00:40]} Bg6 {[%emt 0:00:49]} 69. Rc5 {[%emt 0:00:32]} Bf7 {[%emt 0:00:
00]} 70. Rb5 {[%emt 0:00:23]} Kg6 {[%emt 0:00:26]} 71. Rb6+ {[%emt 0:00:24]}
Kf5 {[%emt 0:00:24]} 72. Rb7 {[%emt 0:00:32]} Kf6 {[%emt 0:00:25]} 73. Rb5 {
[%emt 0:00:35]} Kg6 {[%emt 0:00:23]} 74. Rg5+ {[%emt 0:00:23]} Kf6 {[%emt 0:00:
00]} 75. Kc1 {[%emt 0:00:09]} Bg6 {[%emt 0:00:25]} 76. f4 {[%emt 0:00:55]} Be8
{[%emt 0:00:55]} 77. Kb2 {[%emt 0:00:30]} Bg6 {[%emt 0:00:35]} 78. Rc5 {
[%emt 0:00:39]} Bf7 {[%emt 0:00:13]} 79. Rc7 {[%emt 0:00:18]} Be6 {[%emt 0:00:
00]} 80. Rc5 {[%emt 0:00:42]} Bf7 {[%emt 0:00:16]} 81. Rc7 {[%emt 0:00:27]} Be6
{[%emt 0:00:20]} 82. Rc6 {[%emt 0:00:15]} Kf5 {[%emt 0:01:41]} 83. Rc5+ {
[%emt 0:00:03]} Kg4 {[%emt 0:00:25]} 84. Rc6 {[%emt 0:01:10]} Bf5 {[%emt 0:00:
00]} 85. Rc5 {[%emt 0:00:26]} Kxf4 {[%emt 0:00:22]} 86. Kxb3 {[%emt 0:00:05]}
Kg4 {[%emt 0:00:50]} 87. Rc4+ {[%emt 0:00:39]} Kg3 {[%emt 0:00:12]} 88. Kb2 {
[%emt 0:00:47]} Bg4 {[%emt 0:01:12]} 89. Rxc2 {[%emt 0:00:31]} Kxh4 {[%emt 0:
00:00]} 90. Rh2+ {[%emt 0:00:09]} Bh3 {[%emt 0:00:20]} 91. Re2 {[%emt 0:00:40]}
Kg3 {[%emt 0:00:34]} 92. Re5 {[%emt 0:00:15]} h4 {[%emt 0:00:16]} 93. Rh5 {
[%emt 0:00:09]} 1/2-1/2